fUST/lending_fUST_20260213
["ID","MTS","AMOUNT","RATE_DAILY","PERIOD"]
[405240617,1770917249673,1000.0,0.00013821,2]
[405240618,1770917249701,500.0,0.00014916,2]
[405240619,1770917249752,1500.0,0.00014368,2]
[405240620,1770917287651,426.00056458,0.00010618,2]
[405240621,1770917294649,189.90894925,0.0001,2]
[405240622,1770917308402,11332.96819744,0.00017,2]
[405240625,1770917352247,-5000.0,0.0002391,2]
[405240626,1770917352268,-150.0,0.00024031,2]
[405240627,1770917352290,-2136.40059978,0.00024142,2]
[405240628,1770917352311,-300.0,0.00024151,2]
[405240629,1770917352332,-5000.0,0.00024152,2]
[405240630,1770917352353,-592.89948206,0.0002464,2]
[405240631,1770917352375,-400.0,0.00024641,2]
[405240632,1770917352397,-6444.07517678,0.0002465,2]
[405240633,1770917352418,-24681.26255123,0.00025,2]
[405240634,1770917352438,-8891.68656895,0.00025,30]
[405240635,1770917360112,-13625.09623211,0.00025,30]
[405240636,1770917360135,-493.80384271,0.00025771,2]
[405240637,1770917360161,-177.0,0.00026031,2]
[405240638,1770917360183,-420.0,0.00026186,2]
[405240639,1770917360202,-204.0,0.00028031,2]
[405240640,1770917360222,-368.93216802,0.00028085,2]
[405240641,1770917360241,-587.0,0.00028393,2]
[405240642,1770917360263,-193.0,0.0003,14]
[405240643,1770917360282,-231.0,0.00030031,2]
[405240644,1770917360300,-823.0,0.00030786,2]
[405240645,1770917360320,-742.60909304,0.00031626,2]
[405240646,1770917360341,-713.0,0.00031762,2]
[405240647,1770917360360,-429.171,0.00031762,2]
[405240648,1770917360380,-150.0,0.00032,120]
[405240649,1770917360402,-258.0,0.00032031,2]
[405240650,1770917360421,-174.14803061,0.00032533,2]
[405240651,1770917360443,-842.33,0.0003299,10]
[405240652,1770917360465,-701.94,0.0003299,10]
[405240653,1770917360485,-584.95,0.0003299,10]
[405240654,1770917360506,-4556.91630503,0.00033,120]
[405240655,1770917364149,-1182.1564933,0.0003267,2]
[405240656,1770917364169,-83163.78857792,0.00033,120]
[405240657,1770917365088,-97001.98530778,0.00033,120]
[405240658,1770917365115,-17821.8615302,0.00033,120]
[405240659,1770917369105,-597.71,0.0003299,10]
[405240660,1770917369125,-160665.78685642,0.00033,120]
[405240686,1770917419451,300.0,0.00013673,2]
[405240687,1770917419498,300.0,0.00014221,2]
[405240688,1770917419798,259.9815502,0.00013273,2]
[405240717,1770917432108,-300.23,0.000329,2]
[405240735,1770917438160,-3091.02387228,0.000329,2]
[405241267,1770917444463,-4770.81809725,0.000329,2]
[405241268,1770917444473,-229.18190275,0.0003299,10]
[405241269,1770917445151,-268.90809725,0.0003299,10]
[405241270,1770917445163,-415.08,0.0003299,10]
[405241271,1770917445178,-223.93190275,0.0003299,10]
[405241272,1770917445193,-121.96809725,0.0003299,10]
[405241273,1770917445204,-400.0,0.00032999,2]
[405241274,1770917445217,-19.18616174,0.00033,120]
[405241293,1770917446232,-288.25,0.0003299,10]
[405241294,1770917446244,-6405.18369735,0.00033,120]
[405241295,1770917446257,-127913.6965838,0.00033,120]
[405241296,1770917446270,-1385.50233932,0.00033,14]
[405241297,1770917446280,-345.02,0.00033,14]
[405241298,1770917446291,-1954.05,0.00033,2]
[405241299,1770917446302,-154.77,0.00033,7]
[405241300,1770917446313,-178.60266112,0.000332,117]
[405241301,1770917446328,-150.0,0.00034,120]
[405241302,1770917446339,-285.0,0.00034031,120]
[405241303,1770917446351,-8162.07196952,0.00034261,2]
[405241304,1770917446362,-593.0,0.00034468,30]
[405241305,1770917446373,-791.0,0.00034468,30]
[405241306,1770917446383,-168.0,0.0003449,2]
[405241307,1770917446395,-21751.18146773,0.00034898,2]
[405241308,1770917446406,-28278.69451357,0.00035,2]
[405241309,1770917446416,-560.0,0.00035456,2]
[405241310,1770917446426,-8162.07196952,0.00035623,2]
[405241311,1770917446435,-168.0,0.00035886,2]
[405241312,1770917446445,-1424.34,0.00035887,5]
[405241313,1770917446455,-500.0,0.00035888,5]
[405241314,1770917446467,-500.0,0.00035888,5]
[405241315,1770917446478,-500.0,0.00035888,5]
[405241316,1770917446489,-500.0,0.00035888,5]
[405241317,1770917446500,-343.27604641,0.00035889,2]
[405241318,1770917446510,-312.0,0.00036031,120]
[405241319,1770917446521,-1424.34,0.00036161,5]
[405241320,1770917446532,-500.0,0.00036162,5]
[405241321,1770917446543,-500.0,0.00036162,5]
[405241322,1770917446555,-500.0,0.00036162,5]
[405241323,1770917446567,-500.0,0.00036162,5]
[405241324,1770917446578,-1424.34,0.00036435,5]
[405241325,1770917446589,-500.0,0.00036436,5]
[405241326,1770917446601,-500.0,0.00036436,5]
[405241327,1770917446612,-500.0,0.00036436,5]
[405241328,1770917446624,-500.0,0.00036436,5]
[405241329,1770917446634,-2000.0,0.00036603,2]
[405241330,1770917446647,-168.0,0.00036643,2]
[405241331,1770917446660,-1424.34,0.00036709,5]
[405241332,1770917446671,-500.0,0.0003671,5]
[405241333,1770917446682,-500.0,0.0003671,5]
[405241334,1770917446693,-500.0,0.0003671,5]
[405241335,1770917446703,-500.0,0.0003671,5]
[405241336,1770917446715,-1424.34,0.00036983,5]
[405241337,1770917446725,-8162.07196952,0.00036984,2]
[405241338,1770917446735,-500.0,0.00036984,5]
[405241339,1770917446745,-500.0,0.00036984,5]
[405241340,1770917446755,-500.0,0.00036984,5]
[405241341,1770917446765,-500.0,0.00036984,5]
[405241342,1770917446775,-704.0,0.00037053,11]
[405241343,1770917446786,-1424.34,0.00037257,5]
[405241344,1770917446797,-500.0,0.00037258,5]
[405241345,1770917446807,-500.0,0.00037258,5]
[405241346,1770917446818,-500.0,0.00037258,5]
[405241347,1770917446830,-500.0,0.00037258,5]
[405241348,1770917446841,-1954.05,0.000374,2]
[405241349,1770917446852,-1424.34,0.00037531,5]
[405241350,1770917446863,-500.0,0.00037532,5]
[405241351,1770917446873,-500.0,0.00037532,5]
[405241352,1770917446883,-500.0,0.00037532,5]
[405241353,1770917446894,-500.0,0.00037532,5]
[405241354,1770917446905,-1424.34,0.00037805,5]
[405241355,1770917446916,-500.0,0.00037806,5]
[405241356,1770917446927,-500.0,0.00037806,5]
[405241357,1770917446937,-500.0,0.00037806,5]
[405241358,1770917446948,-500.0,0.00037806,5]
[405241359,1770917446961,-154.77,0.000379,7]
[405241360,1770917446972,-10432.5359173,0.00038,2]
[405241361,1770917446983,-339.0,0.00038031,120]
[405241362,1770917446994,-1424.34,0.00038079,5]
[405241363,1770917447004,-500.0,0.0003808,5]
[405241364,1770917447015,-413.59920691,0.0003808,5]
[405241365,1770917447025,-289.9402783,0.0003808,5]
[405241366,1770917447057,-210.0597217,0.0003808,5]
[405241367,1770917447067,-500.0,0.0003808,5]
[405241368,1770917447080,-251.0,0.00038095,2]
[405241369,1770917447090,-345.02,0.000381,14]
[405241370,1770917447101,-1424.34,0.00038353,5]
[405241371,1770917447112,-237.07,0.00038354,5]
[405241372,1770917447123,-500.0,0.00038354,5]
[405241373,1770917447135,-411.04959196,0.00038354,5]
[405241374,1770917447146,-59.78891064,0.00038627,5]
[405241375,1770917447160,-1364.55108936,0.00038627,5]
[405241376,1770917447170,-500.0,0.00038628,5]
[405241377,1770917447181,-472.41882524,0.00038694,2]
[405241378,1770917447192,-850.35388544,0.00038694,2]
[405241379,1770917447202,-1424.34,0.00038901,5]
[405241380,1770917447215,-500.0,0.00038902,5]
[405241381,1770917447225,-200.0,0.00039,120]
[405241382,1770917447235,-1424.34,0.00039175,5]
[405241383,1770917447248,-500.0,0.00039176,5]
[405241384,1770917447258,-1424.34,0.00039449,5]
[405241385,1770917447268,-304.45552902,0.0003945,5]
[405241386,1770917447279,-1275.1740122,0.00039657,2]
[405241387,1770917447289,-497.3065607,0.00039657,2]
[405241388,1770917447300,-1424.34,0.00039723,5]
[405241389,1770917447316,-1782.35,0.000399,120]
[405241390,1770917447335,-2000.0,0.00039918,21]
[405241391,1770917447348,-1424.34,0.00039997,5]
[405241392,1770917447360,-907.92,0.00039999,2]
[405241393,1770917447373,-500.0,0.00039999,5]
[405241394,1770917447384,-500.0,0.00039999,5]
[405241395,1770917447396,-583.202816,0.00039999,5]
[405241396,1770917447408,-2101.98087948,0.00039999,120]
[405241399,1770917561780,150.0,0.0002589,2]
[405241400,1770917562192,177.0,0.0002789,2]
[405241403,1770917574568,-204.0,0.0002989,2]
[405241405,1770917591823,-231.0,0.0003189,2]
[405241410,1770917721499,239.54716756,0.00013273,2]
[405241414,1770917790846,406.16015124,0.00013821,2]
[405241415,1770917790918,500.0,0.00013273,2]
[405241420,1770917829652,500.0,0.00013699,2]
[405241421,1770917829711,654.60959392,0.00014247,2]
[405241422,1770917833333,500.0,0.00013699,2]
[405241444,1770917952304,300.0,0.00013673,2]
[405241450,1770918017496,500.0,0.00013699,2]
[405241451,1770918017546,1000.0,0.00014247,2]
[405241452,1770918025994,500.00498246,0.00013699,2]
[405241453,1770918027468,500.0,0.00013699,2]
[405241454,1770918027896,301.56130493,0.00013699,2]
[405241455,1770918035576,500.0,0.00013699,2]
[405241457,1770918067300,500.0,0.00013699,2]
[405241459,1770918069000,500.0,0.00013699,2]
[405241460,1770918069054,400.32003782,0.00014247,2]
[405241467,1770918129131,500.0,0.00013699,2]
[405241469,1770918303258,500.0,0.00013273,2]
[405241470,1770918332130,-150.0,0.0002529,2]
[405241471,1770918332151,-31.14897039,0.00025375,2]
[405241473,1770918394083,-1151.00752291,0.00025121,2]
[405241474,1770918394105,-177.0,0.0002729,2]
[405241475,1770918394128,-204.0,0.0002929,2]
[405241476,1770918394148,-231.0,0.0003129,2]
[405241477,1770918394167,-633.0,0.00031788,2]
[405241478,1770918394186,-1377.0,0.00031788,2]
[405241479,1770918394206,-2166.0,0.00031788,2]
[405241480,1770918394225,-813.3,0.00032971,2]
[405241481,1770918394246,-258.0,0.0003329,120]
[405241482,1770918394266,-264.2491849,0.00034172,2]
[405241483,1770918394286,-704.0,0.00034468,30]
[405241484,1770918394306,-792.0,0.00034468,30]
[405241485,1770918394325,-742.60909304,0.00034862,2]
[405241486,1770918394346,-150.0,0.00034984,7]
[405241487,1770918394366,-150.0,0.00034984,7]
[405241488,1770918394385,-500.0,0.00034984,7]
[405241489,1770918394404,-150.0,0.00034984,7]
[405241490,1770918394423,-150.0,0.00034984,7]
[405241491,1770918394444,-150.0,0.00034984,7]
[405241492,1770918394466,-500.0,0.00034984,7]
[405241493,1770918394485,-5103.84989015,0.00034984,2]
[405241494,1770918426081,-722.0,0.00031788,2]
[405241495,1770918426102,-726.0,0.00034984,30]
[405241496,1770918426130,-528.0,0.00034984,30]
[405241497,1770918426157,-3134.02843592,0.00034984,2]
[405241498,1770918426177,-400.0,0.00035038,2]
[405241499,1770918426197,-150.0,0.00035039,7]
[405241500,1770918426217,-150.0,0.00035039,7]
[405241501,1770918426237,-500.0,0.00035039,7]
[405241502,1770918426257,-150.0,0.00035039,7]
[405241503,1770918426276,-150.0,0.00035039,7]
[405241504,1770918426296,-500.0,0.00035039,7]
[405241505,1770918426315,-150.0,0.00035039,7]
[405241506,1770918426334,-275.22088959,0.00035094,7]
[405241507,1770918426353,-208.74534545,0.00035094,7]
[405241508,1770918426373,-612.32015255,0.00035094,7]
[405241509,1770918426393,-207.36394531,0.00035094,7]
[405241510,1770918426415,-204.42424941,0.00035094,7]
[405241511,1770918426435,-500.0,0.00035094,7]
[405241512,1770918426462,-216.05920252,0.00035094,7]
[405241513,1770918426508,-500.0,0.00035148,7]
[405241514,1770918426532,-4081.03598476,0.00035156,2]
[405241515,1770918426553,-318.5674878,0.00035203,7]
[405241516,1770918426575,-585.15636156,0.00035616,120]
[405241517,1770918426595,-500.0,0.00035616,2]
[405241518,1770918426616,-500.0,0.00035616,5]
[405241519,1770918426636,-500.0,0.00035616,5]
[405241520,1770918426659,-500.0,0.00035616,5]
[405241521,1770918426679,-500.0,0.00035616,5]
[405241522,1770918426699,-500.0,0.00035616,5]
[405241523,1770918426718,-616.64,0.00035616,5]
[405241524,1770918426738,-500.0,0.00035616,5]
[405241525,1770918426758,-500.0,0.00035616,2]
[405241526,1770918426781,-899.93,0.00035616,5]
[405241527,1770918426800,-500.0,0.00035616,5]
[405241528,1770918426818,-500.0,0.00035616,5]
[405241529,1770918426838,-500.0,0.00035616,5]
[405241530,1770918426858,-500.0,0.00035616,5]
[405241531,1770918426877,-500.0,0.00035616,5]
[405241532,1770918426897,-500.0,0.00035616,120]
[405241533,1770918426916,-500.0,0.00035616,5]
[405241534,1770918426936,-500.0,0.00035887,5]
[405241535,1770918426967,-500.0,0.00035887,5]
[405241536,1770918426992,-500.0,0.00035887,5]
[405241537,1770918427012,-500.0,0.00035887,5]
[405241538,1770918427035,-500.0,0.00035887,5]
[405241539,1770918427055,-500.0,0.00035887,5]
[405241540,1770918427074,-500.0,0.00035887,5]
[405241541,1770918427093,-500.0,0.00035887,5]
[405241542,1770918427113,-500.0,0.00035887,5]
[405241543,1770918427132,-500.0,0.00035887,5]
[405241544,1770918427152,-500.0,0.00035887,5]
[405241545,1770918427172,-500.0,0.00035887,5]
[405241546,1770918427192,-500.0,0.0003589,2]
[405241547,1770918427212,-500.0,0.0003589,5]
[405241548,1770918427237,-500.0,0.0003589,5]
[405241549,1770918427266,-616.64,0.0003589,5]
[405241550,1770918427290,-500.0,0.0003589,2]
[405241551,1770918427320,-899.93,0.0003589,5]
[405241552,1770918427342,-500.0,0.0003589,5]
[405241553,1770918427361,-480.86853477,0.0003589,5]
[405241554,1770918427384,-598.52,0.0003589,5]
[405241555,1770918427406,-500.0,0.0003589,5]
[405241556,1770918427427,-500.0,0.0003589,120]
[405241557,1770918427448,-500.0,0.0003589,5]
[405241558,1770918427471,-364.63,0.0003606,5]
[405241559,1770918427494,-500.0,0.00036161,5]
[405241560,1770918427515,-500.0,0.00036161,5]
[405241561,1770918427537,-500.0,0.00036161,5]
[405241562,1770918427558,-500.0,0.00036161,5]
[405241563,1770918427577,-500.0,0.00036161,5]
[405241564,1770918427598,-500.0,0.00036161,5]
[405241565,1770918427617,-500.0,0.00036164,2]
[405241566,1770918427641,-556.12,0.00036164,5]
[405241567,1770918427661,-557.7,0.00036164,5]
[405241568,1770918427683,-616.64,0.00036164,5]
[405241569,1770918427703,-500.0,0.00036164,2]
[405241570,1770918427723,-899.93,0.00036164,5]
[405241571,1770918427743,-500.0,0.00036164,5]
[405241572,1770918427762,-500.0,0.00036164,5]
[405241573,1770918427782,-247.19278159,0.00036164,120]
[405241574,1770918427802,-4081.03598476,0.00036195,2]
[405241575,1770918427824,-241.14,0.00036435,5]
[405241576,1770918427845,-220.16617988,0.00036435,5]
[405241577,1770918427863,-500.0,0.00036438,2]
[405241578,1770918427882,-616.64,0.00036438,5]
[405241579,1770918427901,-500.0,0.00036438,2]
[405241580,1770918427920,-899.93,0.00036438,5]
[405241581,1770918427940,-500.0,0.00036438,5]
[405241582,1770918427959,-500.0,0.00036438,5]
[405241583,1770918427978,-2000.0,0.00036603,2]
[405241584,1770918427998,-263.41796289,0.00036712,2]
[405241585,1770918428021,-616.64,0.00036712,5]
[405241586,1770918428042,-500.0,0.00036712,2]
[405241587,1770918428062,-899.93,0.00036712,5]
[405241588,1770918428086,-500.0,0.00036712,5]
[405241589,1770918428119,-500.0,0.00036712,5]
[405241590,1770918428140,-616.64,0.00036986,5]
[405241591,1770918428162,-500.0,0.00036986,2]
[405241592,1770918428183,-899.93,0.00036986,5]
[405241593,1770918428204,-500.0,0.00036986,5]
[405241594,1770918428224,-500.0,0.00036986,5]
[405241595,1770918428245,-4081.03598476,0.00037234,2]
[405241596,1770918428267,-616.64,0.0003726,5]
[405241597,1770918428290,-500.0,0.0003726,2]
[405241598,1770918428312,-899.93,0.0003726,5]
[405241599,1770918428333,-500.0,0.0003726,5]
[405241600,1770918428355,-500.0,0.0003726,5]
[405241601,1770918428383,-1511.74024078,0.0003742,2]
[405241602,1770918428407,-313.4664551,0.00037465,2]
[405241603,1770918428432,-616.64,0.00037534,5]
[405241604,1770918428458,-500.0,0.00037534,2]
[405241605,1770918428479,-899.93,0.00037534,5]
[405241606,1770918428501,-161.98,0.00037534,5]
[405241607,1770918428522,-500.0,0.00037534,5]
[405241608,1770918428546,-560.0,0.00037567,2]
[405241609,1770918428567,-616.64,0.00037808,5]
[405241610,1770918428588,-500.0,0.00037808,2]
[405241611,1770918428608,-899.93,0.00037808,5]
[405241612,1770918428629,-500.0,0.00037808,5]
[405241613,1770918428650,-616.64,0.00038082,5]
[405241614,1770918428671,-500.0,0.00038082,2]
[405241615,1770918428692,-899.93,0.00038082,5]
[405241616,1770918428713,-500.0,0.00038082,5]
[405241617,1770918428733,-4081.03598476,0.00038273,2]
[405241618,1770918428754,-616.64,0.00038356,5]
[405241619,1770918428775,-500.0,0.00038356,2]
[405241620,1770918428796,-899.93,0.00038356,5]
[405241621,1770918428816,-500.0,0.00038356,5]
[405241622,1770918428837,-12774.291817,0.00038465,3]
[405241623,1770918428857,-616.64,0.0003863,5]
[405241624,1770918428878,-548.75,0.0003863,2]
[405241625,1770918428898,-899.93,0.0003863,5]
[405241626,1770918428918,-500.0,0.0003863,5]
[405241627,1770918428937,-722.84,0.00038894,10]
[405241628,1770918428959,-616.64,0.00038904,5]
[405241629,1770918428979,-899.93,0.00038904,5]
[405241630,1770918429001,-500.0,0.00038904,5]
[405241631,1770918429022,-194.50884346,0.00039,2]
[405241632,1770918429042,-616.64,0.00039178,5]
[405241633,1770918429062,-899.93,0.00039178,5]
[405241634,1770918429083,-500.0,0.00039178,5]
[405241635,1770918429104,-4081.03598476,0.00039312,2]
[405241636,1770918429125,-616.64,0.00039452,5]
[405241637,1770918429146,-899.93,0.00039452,5]
[405241638,1770918429166,-500.0,0.00039452,5]
[405241639,1770918429315,-323.0,0.00039509,2]
[405241640,1770918429336,-616.64,0.00039726,5]
[405241641,1770918429357,-899.93,0.00039726,5]
[405241642,1770918429379,-500.0,0.00039726,5]
[405241643,1770918429401,-686.38351773,0.00039945,3]
[405241644,1770918429422,-2532.61,0.00039949,120]
[405241645,1770918429443,-1141.32412423,0.00039989,5]
[405241646,1770918429467,-13822.97906514,0.0003999,2]
[405241647,1770918429488,-16217.31424962,0.0003999,3]
[405241648,1770918433079,-500.0,0.00035616,5]
[405241649,1770918433100,-500.0,0.0003589,5]
[405241650,1770918433121,-500.0,0.00036164,5]
[405241651,1770918433142,-500.0,0.00036438,5]
[405241652,1770918433163,-500.0,0.00036712,5]
[405241653,1770918433183,-85728.41689002,0.0003999,3]
[405241654,1770918441122,-2000.0,0.00036603,2]
[405241655,1770918441144,-75460.5618001,0.0003999,3]
[405241656,1770918451099,-482.61851029,0.00036603,2]
[405241664,1770918547159,-150.0,0.0002589,2]
[405241665,1770918547181,-177.0,0.0002789,2]
[405241666,1770918547202,-204.0,0.0002989,2]
[405241667,1770918547222,-5000.0,0.00030137,120]
[405241713,1770918566164,-231.0,0.0003189,2]
[405241717,1770918607010,151.0,0.00013273,2]
[405241727,1770918632303,-729.0,0.00034468,30]
[405241728,1770918632313,-552.0,0.00034468,30]
[405241729,1770918632323,-329.16223489,0.00034768,2]
[405241730,1770918632333,-500.0,0.00035616,5]
[405241731,1770918632343,-500.0,0.00035616,5]
[405241732,1770918632352,-500.0,0.00035616,5]
[405241733,1770918632362,-500.0,0.00035616,5]
[405241734,1770918632372,-169.77721138,0.00035616,5]
[405241735,1770918632383,-500.0,0.00035616,5]
[405241736,1770918632393,-500.0,0.00035616,5]
[405241737,1770918632402,-1375.05,0.00035616,5]
[405241738,1770918632412,-500.0,0.00035616,5]
[405241739,1770918632422,-3148.16798595,0.00035616,5]
[405241767,1770918638485,-3352.61201405,0.00035616,5]
[405241769,1770918638495,-500.0,0.00035616,5]
[405241771,1770918638505,-836.12,0.00035616,5]
[405241773,1770918638516,-500.0,0.00035616,5]
[405241775,1770918638529,-500.0,0.00035616,5]
[405241777,1770918638538,-668.0,0.00035616,30]
[405241779,1770918638548,-414.0,0.00035616,30]
[405241781,1770918638559,-500.0,0.0003589,5]
[405241783,1770918638569,-441.85651493,0.0003589,5]
[405241785,1770918638579,-500.0,0.0003589,5]
[405241787,1770918638588,-394.14055992,0.0003589,5]
[405242472,1770918645068,-105.85944008,0.0003589,5]
[405242474,1770918645079,-500.0,0.0003589,5]
[405242476,1770918645090,-500.0,0.0003589,5]
[405242479,1770918645102,-712.69785892,0.0003589,5]
[405242575,1770918646593,-662.35214108,0.0003589,5]
[405242576,1770918646606,-500.0,0.0003589,5]
[405242577,1770918646616,-6500.78,0.0003589,5]
[405242578,1770918646629,-500.0,0.0003589,5]
[405242579,1770918646640,-836.12,0.0003589,5]
[405242580,1770918646651,-500.0,0.0003589,5]
[405242581,1770918646663,-500.0,0.0003589,5]
[405242582,1770918646674,-643.0,0.0003589,30]
[405242583,1770918646686,-311.0,0.0003589,30]
[405242584,1770918646696,-1530.38849432,0.00036064,2]
[405242585,1770918646707,-438.27397129,0.00036164,5]
[405242586,1770918646717,-500.0,0.00036164,5]
[405242587,1770918646728,-500.0,0.00036164,5]
[405242588,1770918646738,-500.0,0.00036164,5]
[405242589,1770918646749,-500.0,0.00036164,5]
[405242590,1770918646759,-1375.05,0.00036164,5]
[405242591,1770918646770,-500.0,0.00036164,5]
[405242592,1770918646781,-5184.20358867,0.00036164,5]
[405242599,1770918648362,-1316.57641133,0.00036164,5]
[405242600,1770918648373,-500.0,0.00036164,5]
[405242601,1770918648383,-836.12,0.00036164,5]
[405242602,1770918648394,-500.0,0.00036164,5]
[405242603,1770918648405,-500.0,0.00036164,5]
[405242604,1770918648415,-168.27087076,0.00036438,5]
[405242605,1770918648426,-500.0,0.00036438,5]
[405242606,1770918648436,-155.07,0.00036438,5]
[405242607,1770918648447,-500.0,0.00036438,5]
[405242608,1770918648458,-1375.05,0.00036438,5]
[405242609,1770918648468,-500.0,0.00036438,5]
[405242610,1770918648479,-6500.78,0.00036438,5]
[405242611,1770918648490,-500.0,0.00036438,5]
[405242612,1770918648504,-836.12,0.00036438,5]
[405242613,1770918648516,-500.0,0.00036438,5]
[405242614,1770918648531,-500.0,0.00036438,5]
[405242615,1770918648546,-767.47158081,0.00036603,2]
[405242616,1770918658839,332.07551782,0.00030137,120]
[405242617,1770918659355,423.0,0.00031788,2]
[405242618,1770918671634,500.86377327,0.00013273,2]
[405242619,1770918674007,1801.06130891,0.00030137,120]
[405242620,1770918674028,3198.93869109,0.00030137,120]
[405242637,1770918688926,17.6391894,0.00013699,2]
[405242638,1770918688946,143.3810125,0.00013699,2]
[405242639,1770918696478,500.0,0.00013699,2]
[405242865,1770919555118,-150.0,0.00025249,2]
[405242866,1770919555138,-1357.88340998,0.00025292,2]
[405242867,1770919555162,-177.0,0.00027249,2]
[405242868,1770919555183,-204.0,0.00029249,2]
[405242869,1770919555203,-384.15134674,0.00032081,2]
[405242881,1770919745137,-253.29993566,0.00032081,2]
[405242882,1770919745158,-423.0,0.00032638,2]
[405242883,1770919745179,-178.60266112,0.000332,117]
[405242902,1770919832478,-644.0,0.00034295,30]
[405242903,1770919832488,-929.5,0.00034295,30]
[405242905,1770919832497,-168.0,0.00034535,2]
[405242907,1770919832506,-168.0,0.00034627,2]
[405242909,1770919832514,-168.0,0.00034839,2]
[405242911,1770919832523,-401.0,0.0003484,11]
[405242913,1770919832531,-227.504592,0.00034868,2]
[405242915,1770919832540,-570.695408,0.0003532,2]
[405242917,1770919832551,-171.91368504,0.0003532,2]
[405242918,1770919832559,-925.33631496,0.00035338,3]
[405242967,1770919838574,-274.66368504,0.00035338,3]
[405242969,1770919838584,-590.0,0.00035338,30]
[405242971,1770919838593,-150.0,0.00035339,7]
[405242973,1770919838603,-500.0,0.00035339,7]
[405242975,1770919838613,-500.0,0.00035394,7]
[405242976,1770919838623,-500.0,0.00035449,7]
[405242978,1770919838634,-400.0,0.0003546,2]
[405242980,1770919838644,-279.93478216,0.00035494,7]
[405242982,1770919838653,-500.0,0.00035494,7]
[405242984,1770919838663,-500.0,0.00035494,7]
[405242986,1770919838672,-500.0,0.00035494,7]
[405242988,1770919838682,-500.0,0.00035494,7]
[405242990,1770919838691,-500.0,0.00035494,7]
[405242992,1770919838701,-500.0,0.00035494,7]
[405242994,1770919838711,-500.0,0.00035494,7]
[405242996,1770919838720,-500.0,0.00035494,7]
[405242998,1770919838730,-500.0,0.00035494,7]
[405243000,1770919838740,-500.0,0.00035494,7]
[405243002,1770919838750,-500.0,0.00035494,7]
[405243004,1770919838759,-500.0,0.00035494,7]
[405243006,1770919838768,-500.0,0.00035494,7]
[405243008,1770919838778,-500.0,0.00035494,7]
[405243010,1770919838787,-500.0,0.00035494,7]
[405243012,1770919838796,-500.0,0.00035494,7]
[405243014,1770919838806,-500.0,0.00035494,7]
[405243016,1770919838815,-500.0,0.00035494,7]
[405243017,1770919838824,-500.0,0.00035494,7]
[405243019,1770919838833,-500.0,0.00035494,7]
[405243021,1770919838843,-500.0,0.00035494,7]
[405243023,1770919838853,-500.0,0.00035494,7]
[405243025,1770919838862,-247.32012524,0.00035494,7]
[405243027,1770919838874,-238.81080621,0.00035494,7]
[405243029,1770919838884,-500.0,0.00035494,7]
[405243031,1770919838893,-500.0,0.00035494,7]
[405243033,1770919838903,-500.0,0.00035494,7]
[405243035,1770919838913,-500.0,0.00035494,7]
[405243037,1770919838925,-500.0,0.00035494,7]
[405243039,1770919838935,-500.0,0.00035494,7]